bitfinex/quotes_SOLUSD_20251006
["timestamp","ask_amount","ask_price","bid_price","bid_amount"]
[1759771899274,0.66,237.57,237.49,20.8]
[1759771899579,0.66,237.57,237.46,0.68]
[1759771899778,0.66,237.57,237.5,20.8]
[1759771900090,0.66,237.57,237.47,30.52]
[1759771900282,4.20946287,237.56,237.5,20.8]
[1759771900887,14.73312005,237.56,237.5,20.8]
[1759771901394,14.32822005,237.56,237.5,20.8]
[1759771902500,14.32822005,237.56,237.49,30.5]
[1759771903893,14.32822005,237.56,237.48,0.68]
[1759771904085,14.32822005,237.56,237.5,30.48]
[1759771907895,0.66,237.55,237.49,30.42]
[1759771908094,0.71,237.54,237.42,0.68]
[1759771908296,0.71,237.54,237.43,30.42]
[1759771908623,35.37553441,237.56,237.46,20.8]
[1759771908624,0.71,237.53,237.46,20.8]
[1759771909118,5.34127271,237.52,237.39,0.68]
[1759771909405,5.34127271,237.52,237.39,16.58]
[1759771909406,4.63127271,237.49,237.39,16.58]
[1759771909607,35.37553441,237.56,237.33,0.68]
[1759771909608,4.63127271,237.47,237.33,0.68]
[1759771909781,14.73994524,237.45,237.37,29.84]
[1759771909986,0.71,237.44,237.37,29.84]
[1759771910581,14.73994524,237.45,237.37,29.84]
[1759771910582,0.71,237.43,237.37,29.84]
[1759771910992,19.37121795,237.45,237.37,29.84]
[1759771910993,14.73994524,237.45,237.38,0.68]
[1759771911893,10.52853232,237.45,237.38,0.68]
[1759771917322,10.52853232,237.45,237.37,29.84]
[1759771917619,4.92123557,237.46,237.4,20.8]
[1759771917620,4.21123557,237.46,237.4,20.8]
[1759771917916,4.21123557,237.46,237.4,21.48]
[1759771918091,4.21088091,237.48,237.4,20.8]
[1759771918298,4.21069749,237.5,237.41,0.68]
[1759771918692,4.21069749,237.5,237.42,10.87647521]
[1759771918895,0.71,237.55,237.45,20.8]
[1759771919115,0.71,237.55,237.46,0.68]
[1759771919319,7.98361115,237.55,237.47,30.38]
[1759771919498,0.71,237.54,237.47,30.38]
[1759771919695,0.71,237.53,237.47,30.38]
[1759771920016,0.71,237.52,237.47,30.38]
[1759771920213,15.44622162,237.51,237.47,30.38]
[1759771920421,0.71,237.5,237.47,30.38]
[1759771920621,0.71,237.49,237.47,30.38]
[1759771920921,0.71,237.48,237.42,30.38]
[1759771921115,0.71,237.48,237.41,30.38]
[1759771921419,0.71,237.47,237.41,30.38]
[1759771921810,0.71,237.46,237.41,30.38]
[1759771921999,0.71,237.45,237.41,30.38]
[1759771922201,0.71,237.44,237.41,30.38]
[1759771922418,0.71,237.47,237.41,30.38]
[1759771923016,0.71,237.46,237.41,30.38]
[1759771923514,0.71,237.45,237.41,30.38]
[1759771923721,0.71,237.44,237.41,30.38]
[1759771923921,0.71,237.43,237.26,4.21478007]
[1759771924222,7.27361115,237.46,237.27,0.68]
[1759771924223,14.7424287,237.41,237.27,0.68]
[1759771924535,0.71,237.4,237.3,20.8]
[1759771924698,0.71,237.39,237.3,20.8]
[1759771925023,0.71,237.38,237.3,20.8]
[1759771925322,0.71,237.38,237.27,31.06]
[1759771925622,0.71,237.38,237.3,20.8]
[1759771925921,14.7424287,237.41,237.3,20.8]
[1759771926129,14.7424287,237.41,237.31,0.68]
[1759771926297,15.4524287,237.41,237.28,20.8]
[1759771926503,0.71,237.4,237.32,20.8]
[1759771926702,0.71,237.4,237.25,32.84]
[1759771926703,7.27361115,237.36,237.25,131.5]
[1759771927005,7.98361115,237.35,237.23,30.44]
[1759771927213,0.71,237.34,237.23,30.44]
[1759771927432,0.71,237.33,237.23,30.44]
[1759771927626,7.27361115,237.32,237.23,30.44]
[1759771927832,0.71,237.31,237.23,30.44]
[1759771928223,15.45926253,237.3,237.2,0.68]
[1759771928426,15.45926253,237.3,237.2,31.12]
[1759771929742,0.71,237.29,237.2,31.12]
[1759771929922,14.74926253,237.3,237.2,31.12]
[1759771930425,0.71,237.29,237.2,31.12]
[1759771930738,0.71,237.28,237.2,30.44]
[1759771931719,0.71,237.28,237.2,31.12]
[1759771932129,0.71,237.27,237.15,0.88]
[1759771932422,7.27361115,237.24,237.15,0.88]
[1759771932639,0.71,237.23,237.15,21.0]
[1759771932817,0.71,237.22,237.15,21.0]
[1759771933228,0.71,237.21,237.15,0.2]
[1759771933558,7.27361115,237.2,237.15,0.2]
[1759771933722,0.71,237.19,237.15,0.2]
[1759771933920,7.98361115,237.19,237.15,0.2]
[1759771934133,7.27361115,237.16,237.04,2.1961746]
[1759771934334,7.27361115,237.14,237.02,0.68]
[1759771934542,7.27361115,237.13,237.04,20.8]
[1759771934744,7.27361115,237.13,237.02,0.68]
[1759771934745,0.71,237.12,237.02,0.68]
[1759771935542,7.98361115,237.12,237.01,30.42]
[1759771935727,7.27361115,237.1,236.99,0.68]
[1759771936126,7.98361115,237.09,236.96,31.12]
[1759771936324,15.47294921,237.08,236.96,30.44]
[1759771936525,0.71,237.07,236.99,20.8]
[1759771936748,0.71,237.06,236.96,30.44]
[1759771936952,0.71,237.06,236.97,0.68]
[1759771937152,4.9275213,237.11,236.97,0.68]
[1759771937452,4.9275213,237.11,236.99,20.8]
[1759771937658,4.9275213,237.11,237.0,0.68]
[1759771938441,15.47115083,237.11,237.0,0.68]
[1759771938856,15.47115083,237.11,236.99,20.8]
[1759771939158,7.99361115,237.1,236.97,0.68]
[1759771939330,7.99361115,237.1,236.98,20.8]
[1759771939528,0.72,237.09,236.98,20.8]
[1759771939731,14.76115083,237.11,236.99,0.68]
[1759771939732,0.72,237.08,236.99,0.68]
[1759771940256,0.72,237.08,236.96,0.68]
[1759771940453,22.03718308,237.07,236.95,30.46]
[1759771940656,0.72,237.06,236.95,30.46]
[1759771940833,4.21816341,237.07,236.96,0.68]
[1759771941150,4.21816341,237.07,236.98,20.8]
[1759771941556,0.72,237.06,236.98,20.8]
[1759771942258,0.72,237.05,236.95,30.46]
[1759771942431,14.76544042,237.04,236.98,20.8]
[1759771942632,4.21869726,237.04,236.98,20.8]
[1759771943152,0.72,237.03,236.95,30.46]
[1759771943853,25.01869726,237.04,236.96,0.68]
[1759771944055,35.56544042,237.04,236.96,0.68]
[1759771945163,0.72,237.03,236.95,30.46]
[1759771945538,4.21869726,237.04,236.96,0.68]
[1759771945936,14.76544042,237.04,236.96,0.68]
[1759771946661,4.21869726,237.04,236.96,0.68]
[1759771946831,4.93869726,237.04,236.95,30.46]
[1759771947034,15.48544042,237.04,236.95,30.46]
[1759771947235,0.72,237.03,236.95,30.46]
[1759771948458,4.21905324,237.02,236.95,30.46]
[1759771948648,14.76668635,237.02,236.95,30.46]
[1759771949356,4.21905324,237.02,236.95,30.46]
[1759771949556,4.2188478,237.04,236.96,0.68]
[1759771950446,4.2188478,237.04,236.98,20.8]
[1759771950652,0.72,237.08,236.99,0.68]
[1759771951269,11.26514387,237.08,236.98,20.8]
[1759771951473,0.72,237.07,236.98,20.8]
[1759771951677,0.72,237.06,236.98,20.8]
[1759771951846,0.72,237.05,236.98,20.8]
[1759771952467,4.21869726,237.04,236.98,20.8]
[1759771953375,0.72,237.03,236.98,20.8]
[1759771953557,4.21869726,237.04,236.98,20.8]
[1759771953758,0.72,237.03,236.98,20.8]
[1759771954167,0.72,237.02,236.98,20.8]
[1759771954367,0.72,237.01,236.95,51.26]
[1759771954576,4.21940928,237.0,236.95,51.26]
[1759771954873,0.72,236.99,236.95,51.26]
[1759771955558,14.76793248,237.0,236.95,51.26]
[1759771955758,0.66,236.99,236.95,51.26]
[1759771955975,0.66,236.99,236.95,30.46]
[1759771956175,0.66,237.06,236.96,0.68]
[1759771956364,0.66,237.06,236.99,20.8]
[1759771956567,4.21851929,237.05,236.99,20.8]
[1759771956976,14.76481753,237.05,236.99,20.8]
[1759771957174,14.76481753,237.05,236.92,0.68]
[1759771957175,10.87647521,237.03,236.92,0.68]
[1759771957580,0.66,237.02,236.92,21.48]
[1759771957763,14.76481753,237.05,236.92,20.8]
[1759771957968,0.66,237.04,236.93,0.68]
[1759771958483,14.76606335,237.03,236.93,0.68]
[1759771959190,0.66,237.02,236.93,0.68]
[1759771959483,0.66,237.02,236.92,20.8]
[1759771959779,0.66,237.01,236.92,20.8]
[1759771959991,0.66,237.01,236.93,0.68]
[1759771961083,4.21940928,237.0,236.93,0.68]
[1759771961990,14.76793248,237.0,236.93,0.68]
[1759771962792,0.66,236.99,236.92,20.8]
[1759771962969,4.21940928,237.0,236.94,0.68]
[1759771963174,14.76730939,237.01,236.94,0.68]
[1759771963382,4.21923125,237.01,236.94,0.68]
[1759771965791,15.42730939,237.01,236.92,20.8]
[1759771966189,0.66,237.0,236.92,20.8]
[1759771966391,0.66,236.99,236.9,0.68]
[1759771966714,0.66,236.99,236.92,20.8]
[1759771967079,4.21976538,236.98,236.92,20.8]
[1759771967504,0.66,236.97,236.92,20.8]
[1759771967881,0.68,236.96,236.92,20.8]
[1759771968082,14.76917883,236.98,236.92,20.8]
[1759771968406,15.44917883,236.98,236.92,20.8]
[1759771969193,0.68,236.97,236.92,20.8]
[1759771969676,0.68,236.96,236.92,20.8]
[1759771969897,0.68,236.95,236.89,30.46]
[1759771970107,0.68,236.94,236.89,51.26]
[1759771970292,0.68,236.93,236.89,51.26]
[1759771970492,0.68,236.92,236.89,51.26]
[1759771970883,10.87647521,236.99,236.89,20.8]
[1759771971213,14.76980208,236.97,236.89,20.8]
[1759771971398,0.68,236.96,236.89,20.8]
[1759771971710,0.68,236.95,236.89,20.8]
[1759771972002,0.68,236.94,236.89,20.8]
[1759771972201,0.68,236.93,236.89,20.8]
[1759771972392,0.68,236.92,236.89,20.8]
[1759771972580,0.68,236.91,236.85,30.34]
[1759771973196,14.77478997,236.89,236.85,30.34]
[1759771973399,15.45478997,236.89,236.83,0.2]
[1759771973907,4.22083403,236.92,236.84,0.68]
[1759771974108,4.22083403,236.92,236.84,21.48]
[1759771974314,15.45291912,236.92,236.84,20.8]
[1759771974501,0.68,236.91,236.84,20.8]
[1759771974889,14.77291912,236.92,236.84,21.48]
[1759771975500,14.77291912,236.92,236.85,0.68]
[1759771975701,0.68,236.93,236.85,0.68]
[1759771975910,4.90067311,236.93,236.85,0.68]
[1759771976414,4.90067311,236.93,236.88,20.8]
[1759771976610,4.22067311,236.93,236.88,20.8]
[1759771976816,0.68,236.92,236.88,20.8]
[1759771976981,4.22040145,236.95,236.9,20.8]
[1759771977187,4.21994345,236.97,236.9,20.8]
[1759771977388,4.21994345,236.97,236.91,0.68]
[1759771978507,4.21994345,236.97,236.91,4.65945098]
[1759771978692,4.21994345,236.97,236.9,25.45945098]
[1759771978894,4.21994345,236.97,236.91,30.3]
[1759771979716,0.68,236.96,236.89,4.65945098]
[1759771979918,0.68,236.95,236.89,30.3]
[1759771980094,14.76921147,236.98,236.89,30.3]
[1759771980294,15.44921147,236.98,236.9,4.65945098]
[1759771980505,0.68,236.97,236.89,35.63945098]
[1759771980719,0.68,236.96,236.9,4.65945098]
[1759771980901,4.21979802,236.98,236.91,0.68]
[1759771981106,4.21979802,236.98,236.91,5.33945098]
[1759771981330,0.68,236.97,236.89,4.65945098]
[1759771981487,31.67647521,237.04,236.89,4.65945098]
[1759771981488,4.90012153,236.96,236.89,51.08]
[1759771981908,15.45042537,236.96,236.89,51.08]
[1759771983415,14.77167214,236.94,236.89,20.8]
[1759771983609,0.68,236.93,236.9,20.8]
[1759771983794,14.77167214,236.94,236.9,20.8]
[1759771983991,0.68,236.93,236.87,4.65945098]
[1759771984195,0.68,236.92,236.87,4.65945098]
[1759771984419,14.77167214,236.94,236.85,30.3]
[1759771984420,0.68,236.91,236.85,34.95945098]
[1759771984609,0.68,236.9,236.85,30.3]
[1759771984810,0.68,236.89,236.85,30.3]
[1759771985118,0.68,236.88,236.83,0.2]
[1759771985324,0.68,236.87,236.83,0.2]
[1759771985519,4.22190323,236.86,236.83,0.2]
[1759771986017,4.22136856,236.89,236.84,0.68]
[1759771986323,4.22136856,236.89,236.85,20.8]
[1759771986905,10.55123237,236.94,236.86,0.68]
[1759771987106,0.68,236.93,236.86,30.3]
[1759771987499,15.45291912,236.92,236.86,30.3]
[1759771987700,0.68,236.91,236.86,30.3]
[1759771988410,4.22083403,236.92,236.87,0.68]
[1759771988723,10.5508214,236.95,236.86,30.3]
[1759771988724,4.22047775,236.94,236.89,20.8]
[1759771989221,4.22047775,236.94,236.89,21.48]
[1759771989401,4.22047775,236.94,236.89,30.32]
[1759771989402,0.68,236.93,236.89,30.32]
[1759771989600,4.90083403,236.92,236.89,30.32]
[1759771990008,4.22083403,236.92,236.89,30.32]
[1759771990214,4.22083403,236.92,236.87,31.0]
[1759771990412,4.90061035,236.94,236.87,30.32]
[1759771990616,4.22061035,236.94,236.9,20.8]
[1759771990810,4.22061035,236.94,236.9,21.48]
[1759771991011,4.22061035,236.94,236.9,20.8]
[1759771991241,4.90061035,236.94,236.9,20.8]
[1759771991432,4.22061035,236.94,236.9,21.48]
[1759771991736,4.21994345,236.97,236.91,30.98]
[1759771992427,4.21994345,236.97,236.92,0.68]
[1759771992629,4.21940928,237.0,236.93,0.68]
[1759771992814,14.76793248,237.0,236.93,0.68]
[1759771993020,15.44793248,237.0,236.91,161.8]
[1759771993613,4.21940928,237.0,236.94,20.8]
[1759771993816,4.21940928,237.0,236.95,30.28]
[1759771994022,15.44793248,237.0,236.95,30.28]
[1759771994209,14.76793248,237.0,236.95,30.28]
[1759771994413,15.44793248,237.0,236.95,30.28]
[1759771994629,4.89940928,237.0,236.95,30.28]
[1759771994931,11.55647521,236.99,236.91,131.5]
[1759771995124,0.68,236.98,236.91,131.5]
[1759771995836,10.87647521,236.99,236.89,51.14]
[1759771995837,4.89994345,236.97,236.89,51.14]
[1759771996023,4.89994345,236.97,236.92,20.8]
[1759771996220,4.21994345,236.97,236.92,20.8]
[1759771996420,0.68,236.96,236.91,20.8]
[1759771996819,4.21994345,236.97,236.92,30.38]
[1759771997027,0.68,236.96,236.91,30.38]
[1759771997614,0.68,236.95,236.9,20.8]
[1759771997821,15.45167214,236.94,236.91,20.8]
[1759771998021,0.68,236.93,236.91,20.8]
[1759771998332,0.68,236.93,236.85,4.65945098]
[1759771998532,14.77167214,236.94,236.87,20.8]
[1759771998747,14.77167214,236.94,236.88,51.2]
[1759771998935,4.21994345,236.97,236.89,0.67]
[1759771999419,10.54825517,237.01,236.92,20.8]
[1759771999738,11.2285232,237.0,236.92,20.8]
[1759771999935,11.2285232,237.0,236.89,5.75125625]
[1759771999936,0.68,236.99,236.89,56.97125625]
[1759772000238,10.5485232,237.0,236.89,56.97125625]
[1759772000239,0.68,236.98,236.9,30.42]
[1759772000440,0.68,236.97,236.9,30.42]
[1759772000937,10.87647521,236.99,236.89,20.8]
[1759772001114,0.68,236.96,236.89,51.22]
[1759772001518,11.55647521,236.99,236.89,51.89]
[1759772001737,14.76917883,236.98,236.89,51.89]
[1759772002344,14.76917883,236.98,236.9,0.67]
[1759772003629,15.44917883,236.98,236.89,51.22]
[1759772004232,15.44917883,236.98,236.9,0.67]
[1759772005240,15.44917883,236.98,236.91,30.4]
[1759772007727,4.89976538,236.98,236.91,31.07]
[1759772007927,4.21976538,236.98,236.92,0.67]
[1759772008125,4.21940928,237.0,236.92,0.67]
[1759772008325,4.21940928,237.0,236.94,20.8]
[1759772008755,14.76793248,237.0,236.94,20.8]
[1759772009337,0.68,236.99,236.94,20.8]
[1759772009556,0.68,236.98,236.94,20.8]
[1759772009758,0.68,236.97,236.94,20.8]
[1759772010090,0.68,236.99,236.94,20.8]
[1759772010258,0.68,236.98,236.94,20.8]
[1759772010462,0.68,236.97,236.94,20.8]
[1759772010679,0.68,236.96,236.91,30.4]
[1759772011183,0.68,236.99,236.91,31.07]
[1759772011369,0.68,237.02,236.92,0.67]
[1759772012173,14.76730939,237.01,236.92,0.67]
[1759772012373,4.21923125,237.01,236.94,20.8]
[1759772012653,4.21923125,237.01,236.95,31.03]
[1759772014163,4.21869726,237.04,236.95,31.03]
[1759772014365,4.21869726,237.04,236.96,0.67]
[1759772016256,14.76544042,237.04,236.96,0.67]
[1759772018192,35.85136444,237.09,236.96,0.67]
[1759772018379,0.72,237.04,236.96,0.67]
[1759772018564,0.72,237.04,236.95,162.54]
[1759772019188,0.72,237.04,236.95,31.04]
[1759772020154,4.21887524,237.03,236.95,31.04]
[1759772020480,4.21887524,237.03,236.96,0.68]
[1759772022585,4.93887524,237.03,236.96,0.68]
[1759772023283,0.72,237.03,236.96,0.68]
[1759772023461,0.72,237.03,236.98,4.65945098]
[1759772023770,0.72,237.03,236.99,30.24]
[1759772023959,4.93888582,237.03,236.99,30.24]
[1759772025083,4.21846837,237.06,237.02,20.8]
[1759772025285,4.93846837,237.06,237.02,20.8]
[1759772025598,0.72,237.09,237.03,30.24]
[1759772025888,0.72,237.08,237.03,30.24]
[1759772026183,11.26408389,237.1,237.03,30.24]
[1759772026480,0.72,237.1,237.03,30.24]
[1759772026687,4.21727395,237.12,237.04,0.68]
[1759772026884,4.21727395,237.12,237.06,20.8]
[1759772027186,0.72,237.13,237.07,30.28]
[1759772027488,4.93718993,237.13,237.07,30.28]
[1759772027669,4.93718993,237.13,237.03,4.21886434]
[1759772027670,0.72,237.12,237.08,30.28]
[1759772027858,0.72,237.11,237.07,30.28]
[1759772028062,0.72,237.11,237.06,30.28]
[1759772028267,0.68,237.1,237.06,30.28]
[1759772028599,0.68,237.09,237.06,30.28]
[1759772029603,4.21798549,237.08,237.06,30.28]
[1759772030392,4.21798549,237.08,237.02,0.67]
[1759772030393,0.68,237.07,237.01,20.8]
[1759772030693,0.68,237.07,237.05,20.8]
[1759772031708,14.76294921,237.08,236.97,0.67]
[1759772031709,14.76481753,237.05,236.97,0.67]
[1759772032004,16.67805756,237.05,236.94,0.67]
[1759772032175,0.68,237.04,236.96,51.04]
[1759772032379,13.46971524,237.03,236.95,30.26]
[1759772032690,10.87647521,237.01,236.95,30.26]
[1759772032994,0.68,237.0,236.88,0.67]
[1759772033166,3.66961481,237.0,236.89,30.28]
[1759772033368,0.68,236.99,236.92,20.8]
[1759772033678,14.76917883,236.98,236.92,20.8]
[1759772033862,0.68,236.97,236.92,20.8]
[1759772034068,0.68,236.96,236.92,20.8]
[1759772034399,0.68,236.95,236.92,20.8]
[1759772034784,0.68,236.94,236.92,20.8]
[1759772034983,4.89976538,236.98,236.92,20.8]
[1759772035281,4.21976538,236.98,236.92,21.47]
[1759772035672,4.21940928,237.0,236.92,21.47]
[1759772036082,4.21940928,237.0,236.93,0.67]
[1759772036300,4.21940928,237.0,236.94,30.28]
[1759772037176,4.21940928,237.0,236.95,0.67]
[1759772037485,4.21940928,237.0,236.94,30.28]
[1759772037874,0.68,236.99,236.94,30.28]
[1759772038079,4.21940928,237.0,236.94,30.28]
[1759772038276,15.44730939,237.01,236.94,30.28]
[1759772038877,4.21923125,237.01,236.94,30.28]
[1759772039085,4.21923125,237.01,236.95,0.67]
[1759772039799,4.21892142,237.03,236.97,20.8]
[1759772040183,0.68,237.02,236.97,20.8]
[1759772040592,0.68,237.01,236.97,20.8]
[1759772040790,14.76610953,237.03,236.97,20.8]
[1759772040990,0.68,237.0,236.94,30.28]
[1759772041503,0.68,236.99,236.94,30.28]
[1759772041673,10.87647521,236.96,236.84,4.65945098]
[1759772041870,15.45104874,236.95,236.84,25.12]
[1759772042073,0.68,236.94,236.84,25.79]
[1759772042309,14.77104874,236.95,236.87,20.8]
[1759772042485,0.68,236.93,236.87,20.8]
[1759772043004,0.68,236.93,236.84,25.79]
[1759772043184,0.68,236.93,236.87,20.8]
[1759772043392,0.68,236.92,236.87,20.8]
[1759772043781,4.22119037,236.9,236.87,20.8]
[1759772044083,4.22119037,236.9,236.83,0.2]
[1759772044389,4.90119037,236.9,236.85,30.26]
[1759772044595,0.68,236.89,236.83,0.2]
[1759772045909,14.7754137,236.88,236.83,0.2]
[1759772046109,0.68,236.87,236.83,0.2]
[1759772046412,14.7754137,236.88,236.83,0.2]
[1759772046591,0.68,236.87,236.83,0.2]
[1759772046981,14.7754137,236.88,236.83,0.2]
[1759772047180,0.68,236.87,236.83,0.2]
[1759772047386,0.68,236.86,236.83,0.2]
[1759772047875,0.68,236.85,236.83,0.2]
[1759772048092,0.68,236.84,236.83,0.2]
[1759772048298,0.68,236.84,236.83,1e-08]
[1759772048675,14.54609002,236.84,236.83,1e-08]
[1759772048874,14.77603748,236.87,236.83,1e-08]
[1759772049097,4.90172499,236.87,236.83,1e-08]
[1759772049308,0.68,236.86,236.83,1e-08]
[1759772049692,0.68,236.85,236.83,1e-08]
[1759772049994,4.22225975,236.84,236.83,1e-08]
[1759772050194,4.90225975,236.84,236.83,1e-08]
[1759772052182,7.89187456,236.84,236.83,1e-08]
[1759772053431,18.60126392,236.84,236.83,1e-08]
[1759772055204,15.61164911,236.84,236.83,1e-08]
[1759772055444,80.54821206,236.84,236.76,0.2]
[1759772055707,80.54821206,236.84,236.68,30.46]
[1759772055708,20.8,236.7,236.68,1e-08]
[1759772055931,20.8,236.7,236.64,0.2]
[1759772055932,10.87647521,236.65,236.64,1e-08]
[1759772056146,5.97922962,236.65,236.59,1e-08]
[1759772056314,14.79352466,236.59,236.41,7.18]
[1759772056509,34.66609002,236.56,236.41,7.18]
[1759772056713,34.66609002,236.56,236.39,4.65945098]
[1759772056714,34.66609002,236.56,236.43,0.67]
[1759772056925,34.66609002,236.56,236.38,4.65945098]
[1759772056926,10.87647521,236.51,236.38,4.65945098]
[1759772057125,10.87647521,236.51,236.29,9.583225]
[1759772057126,13.86609002,236.45,236.32,0.67]
[1759772057326,10.87647521,236.4,236.29,0.2]
[1759772057508,15.64961481,236.52,236.29,0.2]
[1759772057509,14.79352466,236.59,236.29,15.68219724]
[1759772057709,1.69186845,236.59,236.34,24.65945098]
[1759772057937,2.98961481,236.64,236.38,20.8]
[1759772057938,2.98961481,236.55,236.38,20.8]
[1759772058144,2.98961481,236.57,236.42,20.8]
[1759772058322,2.98961481,236.57,236.39,11.55647521]
[1759772058323,2.98961481,236.6,236.47,4.22886624]
[1759772058639,2.98961481,236.58,236.48,0.68]
[1759772058842,11.59647521,236.59,236.48,0.68]
[1759772058843,0.72,236.59,236.48,0.68]
[1759772059140,19.3,236.6,236.48,0.68]
[1759772059511,0.72,236.59,236.48,0.68]
[1759772059926,30.68,236.58,236.48,0.68]
[1759772060525,11.59647521,236.61,236.49,10.87647521]
[1759772060526,0.72,236.61,236.49,10.87647521]
[1759772060845,38.00813536,236.65,236.51,10.87647521]
[1759772061013,20.8,236.6,236.52,0.68]
[1759772061729,7.32813536,236.61,236.52,0.68]
[1759772061933,21.52,236.62,236.52,0.68]
[1759772062145,30.7,236.61,236.52,0.68]
[1759772062320,34.90636405,236.61,236.52,0.68]
[1759772062627,30.68,236.61,236.52,0.68]
[1759772062834,30.68,236.63,236.52,4.90790301]
[1759772063038,38.72813536,236.63,236.52,0.68]
[1759772063204,31.4,236.63,236.52,0.68]
[1759772063411,31.4,236.63,236.44,30.68]
[1759772063412,7.32813536,236.61,236.5,0.68]
[1759772063737,30.68,236.61,236.5,0.68]
[1759772064522,34.90626803,236.62,236.5,4.90819765]
[1759772064827,0.72,236.61,236.51,0.68]
[1759772065723,30.68,236.61,236.51,0.68]
[1759772065910,4.22626803,236.62,236.51,0.68]
[1759772066115,30.68,236.62,236.51,32.35647521]
[1759772066317,30.68,236.62,236.52,0.68]
[1759772067035,34.90628765,236.62,236.52,0.68]
[1759772067628,34.88628765,236.62,236.52,0.68]
[1759772067825,0.72,236.63,236.54,20.8]
[1759772068133,0.72,236.62,236.52,0.68]
[1759772068343,0.72,236.62,236.5,20.8]
[1759772068542,4.94636405,236.61,236.5,20.8]
[1759772069047,7.32813536,236.52,236.4,12.68311243]
[1759772069219,20.8,236.55,236.38,0.68]
[1759772069220,31.36,236.51,236.38,0.68]
[1759772069544,7.32813536,236.5,236.38,0.68]
[1759772070040,0.72,236.51,236.39,10.87647521]
[1759772070251,30.72,236.51,236.42,20.8]
[1759772070450,4.22815102,236.51,236.42,21.48]
[1759772070818,0.72,236.5,236.39,21.48]
[1759772071435,31.44,236.5,236.39,21.48]
[1759772071635,31.44,236.5,236.4,0.68]
[1759772072433,4.2285086,236.49,236.4,0.68]
[1759772072629,0.72,236.5,236.4,4.91006629]
[1759772072836,30.7,236.51,236.41,0.68]
[1759772073046,35.64821738,236.51,236.41,0.68]
[1759772073240,7.32813536,236.49,236.39,20.8]
[1759772073429,0.72,236.48,236.39,20.8]
[1759772073631,8.04813536,236.47,236.37,0.68]
[1759772073835,30.7,236.46,236.34,0.68]
[1759772074048,0.72,236.45,236.34,0.68]
[1759772074950,31.42,236.45,236.34,25.71112052]
[1759772075137,0.72,236.45,236.37,20.8]
[1759772075744,0.72,236.45,236.35,0.68]
[1759772075945,4.94924723,236.45,236.35,0.68]
[1759772077751,7.32813536,236.44,236.3,30.7]
[1759772077950,7.32813536,236.44,236.23,17.55168544]
[1759772077951,7.32813536,236.4,236.26,11.54647521]
[1759772078158,30.7,236.39,236.26,0.67]
[1759772078357,7.32813536,236.38,236.26,0.67]
[1759772078542,11.5587427,236.38,236.26,0.67]
[1759772078859,31.37,236.37,236.26,0.67]
[1759772079465,31.37,236.37,236.27,20.8]